[Event "57th Biel Festival MTO 2024"]
[White "Gueci,Tea"]
[Black "Haugner,Jan"]
[Site "Biel"]
[Round "2.41"]
[Annotator "RC"]
[Result "1/2-1/2"]
[Date "2024.07.16"]
[WhiteElo "2228"]
[BlackElo "2072"]
[PlyCount "101"]
[TimeControl "60"]

1. e4 {[%emt 0:0:1]} c5 {[%emt 0:0:3]} 2. Nf3 {[%emt 0:0:3]} d6 {[%emt 0:0:6]} 3. d4 {[%emt 0:0:3]} cxd4 {[%emt 0:0:4]} 4. Nxd4 {[%emt 0:0:3]} Nf6 {[%emt 0:0:5]} 5. Nc3 {[%emt 0:0:4]} Bd7 {[%emt 0:0:4]} 6. Be2 {[%emt 0:3:29]} Nc6 {[%emt 0:0:37]} 7. O-O {[%emt 0:0:33]} e6 {[%emt 0:0:7]} 8. Be3 {[%emt 0:1:50]} Be7 {[%emt 0:0:48]} 9. f4 {[%emt 0:4:55]} O-O {[%emt 0:2:22]} 10. Kh1 {[%emt 0:4:44]} a6 {[%emt 0:9:56]} 11. Qe1 {[%emt 0:2:16]} b5 {[%emt 0:5:6]} 12. a3 {[%emt 0:1:0]} Rc8 {[%emt 0:3:35]} 13. Qg3 {[%emt 0:2:27]} Na5 {[%emt 0:8:12]} 14. e5 {[%emt 0:4:1]} Ne8 {[%emt 0:4:33]} 15. Ne4 {[%emt 0:10:24]} Nc4 {[%emt 0:9:16]} 16. Bxc4 {[%emt 0:6:15]} Rxc4 {[%emt 0:0:3]} 17. Rad1 {[%emt 0:1:49]} d5 {[%emt 0:9:11]} 18. Nd2 {[%emt 0:2:13]} Rc8 {[%emt 0:0:35]} 19. N2f3 {[%emt 0:4:45]} f5 {[%emt 0:13:46]} 20. exf6 {[%emt 0:2:54]} Bxf6 {[%emt 0:2:39]} 21. f5 {[%emt 0:14:51]} exf5 {[%emt 0:7:49]} 22. c3 {[%emt 0:0:4]} g6 {[%emt 0:9:13]} 23. Ng5 {[%emt 0:5:21]} Ng7 {[%emt 0:6:37]} 24. Nh3 {[%emt 0:12:21]} Re8 {[%emt 0:3:54]} 25. Nf4 {[%emt 0:1:51]} Re5 {[%emt 0:7:26]} 26. Nc2 {[%emt 0:7:39]} Bc6 {[%emt 0:2:1]} 27. Bd4 {[%emt 0:4:6]} Re4 {[%emt 0:0:46]} 28. Bxf6 {[%emt 0:1:6]} Qxf6 {[%emt 0:0:2]} 29. Nb4 {[%emt 0:0:19]} Bb7 {[%emt 0:1:17]} 30. Nfxd5 {[%emt 0:0:41]} Qe5 {[%emt 0:1:40]} 31. Qxe5 {[%emt 0:2:39]} Rxe5 {[%emt 0:0:1]} 32. Rfe1 {[%emt 0:2:3]} Rxe1+ {[%emt 0:0:59]} 33. Rxe1 {[%emt 0:0:1]} Rd8 {[%emt 0:0:31]} 34. Rd1 {[%emt 0:3:15]} Kf7 {[%emt 0:0:38]} 35. Ne3 {[%emt 0:0:24]} Rxd1+ {[%emt 0:0:27]} 36. Nxd1 {[%emt 0:0:6]} Ne6 {[%emt 0:1:11]} 37. Nd3 {[%emt 0:1:50]} Kf6 {[%emt 0:0:57]} 38. Kg1 {[%emt 0:1:16]} f4 {[%emt 0:0:53]} 39. a4 {[%emt 0:4:32]} Kf5 {[%emt 0:0:52]} 40. axb5 {[%emt 0:1:6]} axb5 {[%emt 0:0:1]} 41. N1f2 {[%emt 0:3:54]} g5 {[%emt 0:9:26]} 42. h3 {[%emt 0:8:19]} h5 {[%emt 0:1:6]} 43. Nb4 {[%emt 0:2:35]} g4 {[%emt 0:7:23]} 44. hxg4+ {[%emt 0:0:55]} hxg4 {[%emt 0:0:2]} 45. b3 {[%emt 0:1:57]} g3 {[%emt 0:3:38]} 46. Nfd3 {[%emt 0:1:52]} Ng5 {[%emt 0:6:14]} 47. Ne1 {[%emt 0:5:45]} Kg4 {[%emt 0:5:33]} 48. Nbd3 {[%emt 0:10:41]} Bd5 {[%emt 0:2:40]} 49. c4 {[%emt 0:0:29]} bxc4 {[%emt 0:1:13]} 50. bxc4 {[%emt 0:0:5]} Be4 {[%emt 0:2:23]} 51. c5 {[%emt 0:2:2]} 1/2-1/2

[Event "57th Biel Festival MTO 2024"]
[White "Panda,Barnabas"]
[Black "Mostertman,Milan"]
[Site "Biel"]
[Round "2.42"]
[Annotator "RC"]
[Result "1/2-1/2"]
[Date "2024.07.16"]
[WhiteElo "2074"]
[BlackElo "2231"]
[PlyCount "74"]
[TimeControl "60"]

1. c4 {[%emt 0:0:6]} c6 {[%emt 0:0:20]} 2. g3 {[%emt 0:1:4]} d5 {[%emt 0:0:41]} 3. Nf3 {[%emt 0:0:29]} dxc4 {[%emt 0:2:45]} 4. Bg2 {[%emt 0:2:19]} Nf6 {[%emt 0:3:10]} 5. a4 {[%emt 0:7:21]} h6 {[%emt 0:12:36]} 6. Na3 {[%emt 0:8:4]} Be6 {[%emt 0:2:18]} 7. Qc2 {[%emt 0:1:21]} Qd5 {[%emt 0:0:20]} 8. O-O {[%emt 0:3:47]} Na6 {[%emt 0:8:27]} 9. Rd1 {[%emt 0:14:42]} g6 {[%emt 0:9:43]} 10. Qc3 {[%emt 0:7:9]} Bg7 {[%emt 0:9:21]} 11. d3 {[%emt 0:6:47]} cxd3 {[%emt 0:3:25]} 12. Ng5 {[%emt 0:2:45]} Qd7 {[%emt 0:22:9]} 13. Rxd3 {[%emt 0:6:25]} Qc8 {[%emt 0:0:27]} 14. Nxe6 {[%emt 0:1:16]} Qxe6 {[%emt 0:0:3]} 15. Be3 {[%emt 0:4:53]} O-O {[%emt 0:0:24]} 16. Rad1 {[%emt 0:3:12]} Ne4 {[%emt 0:9:2]} 17. Qc1 {[%emt 0:5:13]} Nd6 {[%emt 0:7:34]} 18. Nc2 {[%emt 0:11:37]} Qa2 {[%emt 0:2:53]} 19. b3 {[%emt 0:0:49]} Nf5 {[%emt 0:1:29]} 20. Nd4 {[%emt 0:4:2]} Nxe3 {[%emt 0:5:14]} 21. R1d2 {[%emt 0:1:5]} Qxd2 {[%emt 0:1:56]} 22. Rxd2 {[%emt 0:0:34]} Nd5 {[%emt 0:0:12]} 23. Bxd5 {[%emt 0:1:36]} cxd5 {[%emt 0:0:2]} 24. Nb5 {[%emt 0:0:27]} e6 {[%emt 0:5:1]} 25. Rc2 {[%emt 0:0:42]} b6 {[%emt 0:0:9]} 26. Nc7 {[%emt 0:1:50]} Nxc7 {[%emt 0:0:8]} 27. Rxc7 {[%emt 0:0:4]} a5 {[%emt 0:1:10]} 28. e3 {[%emt 0:2:7]} Rfb8 {[%emt 0:0:23]} 29. Qc6 {[%emt 0:0:45]} h5 {[%emt 0:2:38]} 30. Rb7 {[%emt 0:0:53]} Bf8 {[%emt 0:0:4]} 31. Rxb8 {[%emt 0:1:34]} Rxb8 {[%emt 0:0:3]} 32. Qc7 {[%emt 0:0:10]} Re8 {[%emt 0:0:35]} 33. Qxb6 {[%emt 0:0:9]} Bb4 {[%emt 0:0:1]} 34. Qc6 {[%emt 0:0:32]} Rd8 {[%emt 0:0:24]} 35. Qc2 {[%emt 0:5:25]} d4 {[%emt 0:1:33]} 36. exd4 {[%emt 0:1:11]} Rxd4 {[%emt 0:0:6]} 37. Kg2 {[%emt 0:0:25]} Rd5 {[%emt 0:1:2]} 1/2-1/2

[Event "57th Biel Festival MTO 2024"]
[White "Balabayeva,Xeniya"]
[Black "Perreard,Nicolas"]
[Site "Biel"]
[Round "2.43"]
[Annotator "RC"]
[Result "1-0"]
[Date "2024.07.16"]
[WhiteElo "2246"]
[BlackElo "2060"]
[PlyCount "53"]
[TimeControl "60"]

1. e4 {[%emt 0:0:2]} e5 {[%emt 0:0:4]} 2. Nf3 {[%emt 0:0:6]} Nf6 {[%emt 0:0:5]} 3. Nxe5 {[%emt 0:0:10]} d6 {[%emt 0:0:5]} 4. Nf3 {[%emt 0:0:6]} Nxe4 {[%emt 0:0:6]} 5. Nc3 {[%emt 0:0:5]} Nxc3 {[%emt 0:0:8]} 6. dxc3 {[%emt 0:0:4]} Be7 {[%emt 0:0:6]} 7. Bf4 {[%emt 0:0:55]} O-O {[%emt 0:0:17]} 8. Qd2 {[%emt 0:0:4]} Nd7 {[%emt 0:0:6]} 9. Bd3 {[%emt 0:2:43]} Nc5 {[%emt 0:0:12]} 10. O-O-O {[%emt 0:3:2]} Bg4 {[%emt 0:10:15]} 11. Be2 {[%emt 0:2:44]} c6 {[%emt 0:4:16]} 12. Bxd6 {[%emt 0:9:40]} Bxd6 {[%emt 0:2:42]} 13. Qxd6 {[%emt 0:0:13]} Qxd6 {[%emt 0:2:30]} 14. Rxd6 {[%emt 0:0:9]} Ne4 {[%emt 0:0:6]} 15. Rd4 {[%emt 0:0:21]} Rfe8 {[%emt 0:0:14]} 16. Bc4 {[%emt 0:12:27]} c5 {[%emt 0:1:58]} 17. Bxf7+ {[%emt 0:1:20]} Kf8 {[%emt 0:13:4]} 18. Bxe8 {[%emt 0:0:40]} cxd4 {[%emt 0:0:23]} 19. Nxd4 {[%emt 0:3:12]} Rxe8 {[%emt 0:1:49]} 20. f3 {[%emt 0:0:7]} Nxc3 {[%emt 0:0:14]} 21. bxc3 {[%emt 0:1:29]} Bh5 {[%emt 0:0:6]} 22. Kd2 {[%emt 0:1:15]} Bf7 {[%emt 0:1:5]} 23. a4 {[%emt 0:1:22]} Re5 {[%emt 0:0:32]} 24. Rb1 {[%emt 0:0:22]} Ra5 {[%emt 0:1:20]} 25. Rxb7 {[%emt 0:1:15]} Rxa4 {[%emt 0:0:16]} 26. Nf5 {[%emt 0:0:32]} Ra5 {[%emt 0:1:22]} 27. Rb8+ {[%emt 0:0:18]} 1-0

[Event "57th Biel Festival MTO 2024"]
[White "Udipi,Kala Kishan"]
[Black "Pappier,Carlos"]
[Site "Biel"]
[Round "2.44"]
[Annotator "RC"]
[Result "1-0"]
[Date "2024.07.16"]
[WhiteElo "2051"]
[BlackElo "2202"]
[PlyCount "83"]
[TimeControl "60"]

1. d4 {[%emt 0:0:2]} d5 {[%emt 0:0:41]} 2. Nf3 {[%emt 0:0:7]} c6 {[%emt 0:0:42]} 3. e3 {[%emt 0:0:17]} Bf5 {[%emt 0:0:47]} 4. Bd3 {[%emt 0:1:14]} Bxd3 {[%emt 0:2:50]} 5. cxd3 {[%emt 0:0:31]} e6 {[%emt 0:0:46]} 6. Nc3 {[%emt 0:0:16]} Nf6 {[%emt 0:2:6]} 7. O-O {[%emt 0:0:44]} Be7 {[%emt 0:0:54]} 8. e4 {[%emt 0:1:17]} O-O {[%emt 0:0:57]} 9. e5 {[%emt 0:1:30]} Nfd7 {[%emt 0:0:43]} 10. Ne1 {[%emt 0:6:21]} c5 {[%emt 0:3:29]} 11. Qg4 {[%emt 0:14:8]} Kh8 {[%emt 0:5:47]} 12. Nf3 {[%emt 0:24:4]} cxd4 {[%emt 0:4:10]} 13. Qxd4 {[%emt 0:0:37]} Nc6 {[%emt 0:5:49]} 14. Qf4 {[%emt 0:1:39]} Qb6 {[%emt 0:4:8]} 15. d4 {[%emt 0:4:15]} Rac8 {[%emt 0:1:12]} 16. Ne2 {[%emt 0:11:47]} Nb4 {[%emt 0:6:33]} 17. Qg4 {[%emt 0:1:58]} Rc4 {[%emt 0:5:12]} 18. b3 {[%emt 0:6:19]} Rc2 {[%emt 0:0:39]} 19. Nf4 {[%emt 0:0:27]} Qc7 {[%emt 0:6:12]} 20. a3 {[%emt 0:5:4]} Na2 {[%emt 0:5:14]} 21. Be3 {[%emt 0:0:43]} Nc3 {[%emt 0:3:50]} 22. Nh5 {[%emt 0:1:40]} g6 {[%emt 0:0:43]} 23. Ng3 {[%emt 0:0:2]} Rc8 {[%emt 0:5:32]} 24. Ng5 {[%emt 0:1:53]} Kg8 {[%emt 0:2:48]} 25. Qf4 {[%emt 0:11:39]} Bxg5 {[%emt 0:3:39]} 26. Qxg5 {[%emt 0:0:2]} Qd8 {[%emt 0:0:27]} 27. Qg4 {[%emt 0:0:15]} Kh8 {[%emt 0:4:23]} 28. Bg5 {[%emt 0:2:13]} Qf8 {[%emt 0:0:29]} 29. Rfe1 {[%emt 0:6:46]} Rc6 {[%emt 0:3:38]} 30. Nf1 {[%emt 0:1:49]} f5 {[%emt 0:4:15]} 31. exf6 {[%emt 0:4:38]} Nxf6 {[%emt 0:0:19]} 32. Qh4 {[%emt 0:0:8]} Nfe4 {[%emt 0:1:50]} 33. Be3 {[%emt 0:0:10]} g5 {[%emt 0:1:40]} 34. Bxg5 {[%emt 0:1:6]} Nxg5 {[%emt 0:5:16]} 35. Qxg5 {[%emt 0:0:2]} Qxf2+ {[%emt 0:0:43]} 36. Kh1 {[%emt 0:0:1]} Ne2 {[%emt 0:8:9]} 37. Ne3 {[%emt 0:1:2]} Rc1 {[%emt 0:3:21]} 38. Raxc1 {[%emt 0:0:14]} Rxc1 {[%emt 0:0:24]} 39. Rxc1 {[%emt 0:0:5]} Nxc1 {[%emt 0:0:11]} 40. Qe5+ {[%emt 0:0:11]} Kg8 {[%emt 0:0:33]} 41. Qxe6+ {[%emt 0:50:9]} Kh8 {[%emt 0:52:28]} 42. Qc8+ {[%emt 0:0:12]} 1-0

[Event "57th Biel Festival MTO 2024"]
[White "Ohler,Julius"]
[Black "Khulan,Enkhsaikhan"]
[Site "Biel"]
[Round "2.45"]
[Annotator "RC"]
[Result "1/2-1/2"]
[Date "2024.07.16"]
[WhiteElo "2078"]
[BlackElo "2063"]
[PlyCount "96"]
[TimeControl "60"]

1. c4 {[%emt 0:0:4]} c6 {[%emt 0:0:6]} 2. g3 {[%emt 0:0:5]} d5 {[%emt 0:0:13]} 3. Bg2 {[%emt 0:0:6]} Nf6 {[%emt 0:0:14]} 4. Nf3 {[%emt 0:0:7]} Bf5 {[%emt 0:0:53]} 5. Qb3 {[%emt 0:0:12]} Qb6 {[%emt 0:0:20]} 6. d3 {[%emt 0:0:19]} e6 {[%emt 0:2:3]} 7. Be3 {[%emt 0:2:23]} Qb4+ {[%emt 0:1:54]} 8. Bd2 {[%emt 0:1:49]} Qxb3 {[%emt 0:0:51]} 9. axb3 {[%emt 0:0:7]} Nbd7 {[%emt 0:1:56]} 10. Bc3 {[%emt 0:11:50]} Be7 {[%emt 0:3:59]} 11. Nh4 {[%emt 0:3:41]} Bg6 {[%emt 0:0:42]} 12. Nxg6 {[%emt 0:2:45]} hxg6 {[%emt 0:0:47]} 13. b4 {[%emt 0:3:52]} e5 {[%emt 0:6:32]} 14. Na3 {[%emt 0:7:5]} e4 {[%emt 0:3:37]} 15. cxd5 {[%emt 0:13:59]} cxd5 {[%emt 0:7:10]} 16. Nb5 {[%emt 0:1:14]} O-O {[%emt 0:1:39]} 17. Nxa7 {[%emt 0:10:44]} d4 {[%emt 0:3:20]} 18. Bd2 {[%emt 0:0:19]} Ne5 {[%emt 0:1:33]} 19. Ra5 {[%emt 0:12:29]} exd3 {[%emt 0:7:19]} 20. Rxe5 {[%emt 0:7:42]} Rxa7 {[%emt 0:3:57]} 21. exd3 {[%emt 0:1:37]} b6 {[%emt 0:3:3]} 22. O-O {[%emt 0:2:27]} Rc8 {[%emt 0:1:1]} 23. Rfe1 {[%emt 0:6:6]} Bf8 {[%emt 0:2:24]} 24. Rb5 {[%emt 0:4:41]} Rc2 {[%emt 0:1:22]} 25. Rd1 {[%emt 0:0:4]} Rxb2 {[%emt 0:1:9]} 26. Rxb6 {[%emt 0:0:8]} Raa2 {[%emt 0:0:32]} 27. Be1 {[%emt 0:0:4]} Ra3 {[%emt 0:7:30]} 28. Rb8 {[%emt 0:6:59]} Rab3 {[%emt 0:5:55]} 29. Rd8 {[%emt 0:3:2]} g5 {[%emt 0:2:56]} 30. h3 {[%emt 0:5:4]} g6 {[%emt 0:0:57]} 31. Bc6 {[%emt 0:1:30]} Kg7 {[%emt 0:0:52]} 32. Rxd4 {[%emt 0:0:25]} Bxb4 {[%emt 0:2:15]} 33. Bxb4 {[%emt 0:0:21]} Rxb4 {[%emt 0:0:8]} 34. Rxb4 {[%emt 0:0:21]} Rxb4 {[%emt 0:0:5]} 35. Ra1 {[%emt 0:2:27]} Rb6 {[%emt 0:2:33]} 36. Rc1 {[%emt 0:0:44]} Ng8 {[%emt 0:2:10]} 37. Rc5 {[%emt 0:1:14]} Ne7 {[%emt 0:0:47]} 38. Bb5 {[%emt 0:0:40]} f5 {[%emt 0:0:46]} 39. Bc4 {[%emt 0:0:11]} Kf6 {[%emt 0:1:49]} 40. Kg2 {[%emt 0:0:53]} Nc6 {[%emt 0:1:54]} 41. Bd5 {[%emt 0:19:43]} Nb4 {[%emt 0:3:8]} 42. Bc4 {[%emt 0:0:30]} Rd6 {[%emt 0:0:16]} 43. Rc7 {[%emt 0:1:58]} Nxd3 {[%emt 0:1:0]} 44. Rf7+ {[%emt 0:0:6]} Ke5 {[%emt 0:0:12]} 45. Re7+ {[%emt 0:0:11]} Kf6 {[%emt 0:0:9]} 46. Rf7+ {[%emt 0:0:7]} Ke5 {[%emt 0:0:7]} 47. Re7+ {[%emt 0:0:3]} Kf6 {[%emt 0:0:10]} 48. Rf7+ {[%emt 0:0:4]} Ke5 {[%emt 0:0:10]} 1/2-1/2

[Event "57th Biel Festival MTO 2024"]
[White "Monteverde,Jonathan"]
[Black "Federer,Colin"]
[Site "Biel"]
[Round "2.46"]
[Annotator "RC"]
[Result "1-0"]
[Date "2024.07.16"]
[WhiteElo "2052"]
[BlackElo "2187"]
[PlyCount "81"]
[TimeControl "60"]

1. d4 {[%emt 0:0:6]} Nf6 {[%emt 0:0:10]} 2. c4 {[%emt 0:0:5]} g6 {[%emt 0:0:3]} 3. Nc3 {[%emt 0:0:6]} Bg7 {[%emt 0:0:2]} 4. e4 {[%emt 0:0:8]} d6 {[%emt 0:0:3]} 5. Nf3 {[%emt 0:0:5]} O-O {[%emt 0:0:4]} 6. h3 {[%emt 0:0:6]} e5 {[%emt 0:0:6]} 7. d5 {[%emt 0:0:5]} a5 {[%emt 0:0:12]} 8. g4 {[%emt 0:0:10]} Na6 {[%emt 0:0:35]} 9. Be3 {[%emt 0:0:6]} Nc5 {[%emt 0:1:5]} 10. Nd2 {[%emt 0:0:7]} c6 {[%emt 0:0:12]} 11. Be2 {[%emt 0:0:11]} a4 {[%emt 0:0:27]} 12. g5 {[%emt 0:0:14]} Ne8 {[%emt 0:1:15]} 13. h4 {[%emt 0:5:13]} Qa5 {[%emt 0:5:47]} 14. a3 {[%emt 0:0:37]} f5 {[%emt 0:4:42]} 15. f3 {[%emt 0:0:32]} Nc7 {[%emt 0:6:16]} 16. h5 {[%emt 0:3:27]} fxe4 {[%emt 0:2:58]} 17. h6 {[%emt 0:2:53]} Bh8 {[%emt 0:0:57]} 18. fxe4 {[%emt 0:0:16]} cxd5 {[%emt 0:2:40]} 19. cxd5 {[%emt 0:0:40]} b5 {[%emt 0:0:8]} 20. Qc2 {[%emt 0:11:19]} Nb3 {[%emt 0:11:36]} 21. Nxb3 {[%emt 0:5:34]} axb3 {[%emt 0:0:4]} 22. Qxb3 {[%emt 0:2:7]} b4 {[%emt 0:0:57]} 23. Rc1 {[%emt 0:4:7]} bxc3 {[%emt 0:3:9]} 24. Qxc3 {[%emt 0:0:10]} Qxc3+ {[%emt 0:12:11]} 25. Rxc3 {[%emt 0:0:10]} Ne8 {[%emt 0:0:11]} 26. Bb5 {[%emt 0:15:7]} Rb8 {[%emt 0:14:41]} 27. a4 {[%emt 0:3:11]} Kf7 {[%emt 0:2:12]} 28. Rf1+ {[%emt 0:2:22]} Ke7 {[%emt 0:0:53]} 29. Rxf8 {[%emt 0:0:19]} Kxf8 {[%emt 0:0:5]} 30. Ba7 {[%emt 0:5:25]} Ra8 {[%emt 0:1:2]} 31. Bb6 {[%emt 0:0:11]} Ke7 {[%emt 0:3:54]} 32. Bc6 {[%emt 0:1:32]} Rb8 {[%emt 0:2:45]} 33. Ba7 {[%emt 0:9:13]} Rb4 {[%emt 0:11:8]} 34. Bxe8 {[%emt 0:2:59]} Bd7 {[%emt 0:1:20]} 35. Bxd7 {[%emt 0:1:2]} Kxd7 {[%emt 0:0:3]} 36. a5 {[%emt 0:1:5]} Rxe4+ {[%emt 0:0:41]} 37. Kd1 {[%emt 0:1:15]} Ra4 {[%emt 0:0:39]} 38. Bb6 {[%emt 0:0:22]} Rd4+ {[%emt 0:3:58]} 39. Bxd4 {[%emt 0:0:35]} exd4 {[%emt 0:0:13]} 40. Rc4 {[%emt 0:0:12]} d3 {[%emt 0:0:44]} 41. a6 {[%emt 0:50:14]} 1-0

[Event "57th Biel Festival MTO 2024"]
[White "Kersten,Uwe"]
[Black "Kwiatkowski,Jakub"]
[Site "Biel"]
[Round "2.47"]
[Annotator "RC"]
[Result "1/2-1/2"]
[Date "2024.07.16"]
[WhiteElo "2189"]
[BlackElo "2024"]
[PlyCount "37"]
[TimeControl "60"]

1. e4 {[%emt 0:0:8]} c5 {[%emt 0:0:9]} 2. Nf3 {[%emt 0:0:32]} d6 {[%emt 0:0:8]} 3. d4 {[%emt 0:1:4]} cxd4 {[%emt 0:0:10]} 4. Nxd4 {[%emt 0:0:8]} Nf6 {[%emt 0:0:11]} 5. Nc3 {[%emt 0:0:8]} a6 {[%emt 0:0:10]} 6. Bc4 {[%emt 0:0:44]} e6 {[%emt 0:0:14]} 7. O-O {[%emt 0:0:20]} Be7 {[%emt 0:0:43]} 8. Bb3 {[%emt 0:0:19]} O-O {[%emt 0:0:55]} 9. f4 {[%emt 0:0:33]} Nbd7 {[%emt 0:3:12]} 10. f5 {[%emt 0:9:55]} e5 {[%emt 0:6:47]} 11. Nde2 {[%emt 0:0:53]} b5 {[%emt 0:13:18]} 12. Bg5 {[%emt 0:9:9]} Bb7 {[%emt 0:10:23]} 13. Bxf6 {[%emt 0:1:41]} Nxf6 {[%emt 0:0:12]} 14. Ng3 {[%emt 0:0:19]} Rc8 {[%emt 0:7:45]} 15. Qf3 {[%emt 0:26:48]} b4 {[%emt 0:15:20]} 16. Nd5 {[%emt 0:1:30]} Bxd5 {[%emt 0:0:21]} 17. exd5 {[%emt 0:1:21]} Qb6+ {[%emt 0:2:42]} 18. Kh1 {[%emt 0:0:25]} Qd4 {[%emt 0:6:16]} 19. Rab1 {[%emt 0:3:29]} 1/2-1/2

[Event "57th Biel Festival MTO 2024"]
[White "Selinga,Jan"]
[Black "Kamber,Bruno"]
[Site "Biel"]
[Round "2.48"]
[Annotator "RC"]
[Result "0-1"]
[Date "2024.07.16"]
[WhiteElo "2023"]
[BlackElo "2188"]
[PlyCount "68"]
[TimeControl "60"]

1. d4 {[%emt 0:0:5]} Nf6 {[%emt 0:0:24]} 2. c4 {[%emt 0:0:10]} Nc6 {[%emt 0:0:8]} 3. Nf3 {[%emt 0:5:55]} e6 {[%emt 0:0:21]} 4. a3 {[%emt 0:5:23]} d5 {[%emt 0:0:34]} 5. Nc3 {[%emt 0:0:51]} a6 {[%emt 0:0:11]} 6. e3 {[%emt 0:6:23]} dxc4 {[%emt 0:5:12]} 7. Bxc4 {[%emt 0:0:6]} Bd6 {[%emt 0:0:4]} 8. b4 {[%emt 0:4:51]} O-O {[%emt 0:0:8]} 9. Bb2 {[%emt 0:2:23]} e5 {[%emt 0:6:40]} 10. d5 {[%emt 0:4:25]} Ne7 {[%emt 0:0:49]} 11. Qc2 {[%emt 0:8:10]} Bf5 {[%emt 0:0:23]} 12. e4 {[%emt 0:1:14]} Bg4 {[%emt 0:0:13]} 13. Nd2 {[%emt 0:6:20]} c6 {[%emt 0:0:41]} 14. dxc6 {[%emt 0:3:22]} Nxc6 {[%emt 0:0:23]} 15. f3 {[%emt 0:2:33]} Nd4 {[%emt 0:5:7]} 16. Qd3 {[%emt 0:0:19]} Bd7 {[%emt 0:15:9]} 17. O-O {[%emt 0:1:42]} Rc8 {[%emt 0:2:13]} 18. Rad1 {[%emt 0:3:41]} Bb8 {[%emt 0:3:11]} 19. f4 {[%emt 0:5:31]} Be6 {[%emt 0:15:10]} 20. f5 {[%emt 0:7:28]} Bxc4 {[%emt 0:7:36]} 21. Nxc4 {[%emt 0:0:1]} Nb5 {[%emt 0:0:52]} 22. Nd5 {[%emt 0:14:19]} Re8 {[%emt 0:14:38]} 23. Kh1 {[%emt 0:4:41]} Nxd5 {[%emt 0:2:25]} 24. exd5 {[%emt 0:0:5]} Qh4 {[%emt 0:2:40]} 25. Nb6 {[%emt 0:3:34]} e4 {[%emt 0:0:45]} 26. g3 {[%emt 0:0:52]} exd3 {[%emt 0:1:31]} 27. gxh4 {[%emt 0:0:0]} Rc2 {[%emt 0:1:5]} 28. Rfe1 {[%emt 0:2:10]} Ree2 {[%emt 0:2:19]} 29. Ba1 {[%emt 0:1:30]} Ba7 {[%emt 0:1:7]} 30. Be5 {[%emt 0:6:28]} Bxb6 {[%emt 0:0:27]} 31. Bg3 {[%emt 0:0:15]} h5 {[%emt 0:2:4]} 32. d6 {[%emt 0:6:12]} Rxe1+ {[%emt 0:0:46]} 33. Bxe1 {[%emt 0:0:29]} Nxd6 {[%emt 0:0:32]} 34. Rxd3 {[%emt 0:0:13]} Nxf5 {[%emt 0:0:50]} 0-1

[Event "57th Biel Festival MTO 2024"]
[White "Demchenko,Svitlana"]
[Black "Chen,Muxi"]
[Site "Biel"]
[Round "2.49"]
[Annotator "RC"]
[Result "0-1"]
[Date "2024.07.16"]
[WhiteElo "2176"]
[BlackElo "1954"]
[PlyCount "140"]
[TimeControl "60"]

1. e4 {[%emt 0:0:5]} c5 {[%emt 0:0:48]} 2. c3 {[%emt 0:0:9]} d5 {[%emt 0:1:16]} 3. exd5 {[%emt 0:0:9]} Qxd5 {[%emt 0:0:3]} 4. d4 {[%emt 0:0:14]} g6 {[%emt 0:0:36]} 5. dxc5 {[%emt 0:0:33]} Qxc5 {[%emt 0:2:22]} 6. Be3 {[%emt 0:0:11]} Qa5 {[%emt 0:8:2]} 7. Na3 {[%emt 0:11:20]} Bg7 {[%emt 0:9:24]} 8. Nb5 {[%emt 0:9:57]} Bd7 {[%emt 0:3:36]} 9. Qb3 {[%emt 0:8:55]} a6 {[%emt 0:23:56]} 10. Nd4 {[%emt 0:3:36]} Qc7 {[%emt 0:3:17]} 11. Bc4 {[%emt 0:15:4]} e6 {[%emt 0:0:15]} 12. O-O-O {[%emt 0:2:43]} Nc6 {[%emt 0:9:35]} 13. Nxc6 {[%emt 0:7:27]} Bxc6 {[%emt 0:0:19]} 14. Nf3 {[%emt 0:2:25]} Ne7 {[%emt 0:5:50]} 15. Rhe1 {[%emt 0:11:3]} O-O {[%emt 0:3:10]} 16. Bb6 {[%emt 0:15:7]} Qf4+ {[%emt 0:2:36]} 17. Be3 {[%emt 0:0:14]} Qc7 {[%emt 0:3:6]} 18. Bb6 {[%emt 0:8:16]} Qf4+ {[%emt 0:0:7]} 19. Kb1 {[%emt 0:0:12]} Nd5 {[%emt 0:5:41]} 20. Bd4 {[%emt 0:1:51]} b5 {[%emt 0:2:0]} 21. Bd3 {[%emt 0:0:50]} Bxd4 {[%emt 0:2:45]} 22. Nxd4 {[%emt 0:0:48]} Bb7 {[%emt 0:0:15]} 23. Re2 {[%emt 0:6:57]} Qxh2 {[%emt 0:5:59]} 24. g3 {[%emt 0:0:17]} Nb6 {[%emt 0:1:6]} 25. Qc2 {[%emt 0:1:51]} Qh5 {[%emt 0:3:40]} 26. Be4 {[%emt 0:0:31]} Bxe4 {[%emt 0:3:43]} 27. Qxe4 {[%emt 0:0:1]} Qd5 {[%emt 0:1:5]} 28. Qh4 {[%emt 0:1:30]} e5 {[%emt 0:2:45]} 29. Rh1 {[%emt 0:0:6]} h5 {[%emt 0:0:17]} 30. Nc2 {[%emt 0:0:24]} Kg7 {[%emt 0:0:49]} 31. Nb4 {[%emt 0:1:50]} Qd6 {[%emt 0:1:29]} 32. Rhe1 {[%emt 0:0:54]} a5 {[%emt 0:0:42]} 33. Nc2 {[%emt 0:0:17]} Nc4 {[%emt 0:2:31]} 34. Qh1 {[%emt 0:0:38]} Rad8 {[%emt 0:0:51]} 35. b3 {[%emt 0:0:44]} Na3+ {[%emt 0:1:1]} 36. Nxa3 {[%emt 0:0:36]} Qxa3 {[%emt 0:0:4]} 37. Qe4 {[%emt 0:0:10]} Rfe8 {[%emt 0:0:24]} 38. Qc6 {[%emt 0:0:41]} a4 {[%emt 0:1:22]} 39. Rb2 {[%emt 0:0:50]} axb3 {[%emt 0:1:39]} 40. Rxb3 {[%emt 0:0:27]} Qa7 {[%emt 0:0:37]} 41. Rb2 {[%emt 0:2:53]} Qa4 {[%emt 0:17:35]} 42. Rc1 {[%emt 0:4:43]} Rc8 {[%emt 0:8:0]} 43. Qd5 {[%emt 0:4:4]} Qg4 {[%emt 0:4:47]} 44. Ka1 {[%emt 0:5:16]} Qg5 {[%emt 0:2:3]} 45. Rbc2 {[%emt 0:5:44]} Rb8 {[%emt 0:1:25]} 46. Rb1 {[%emt 0:1:46]} Qf5 {[%emt 0:1:36]} 47. Rcb2 {[%emt 0:9:20]} Red8 {[%emt 0:6:59]} 48. Qc5 {[%emt 0:7:9]} Rbc8 {[%emt 0:2:0]} 49. Qxb5 {[%emt 0:3:34]} Rxc3 {[%emt 0:0:20]} 50. Re2 {[%emt 0:0:6]} Rf3 {[%emt 0:4:3]} 51. Qc5 {[%emt 0:4:11]} Rd7 {[%emt 0:4:37]} 52. Rbe1 {[%emt 0:2:28]} f6 {[%emt 0:0:24]} 53. Rb2 {[%emt 0:2:19]} Rfd3 {[%emt 0:1:20]} 54. Rc1 {[%emt 0:0:59]} Rd1 {[%emt 0:0:43]} 55. Rbc2 {[%emt 0:1:48]} Qd3 {[%emt 0:1:36]} 56. Rc3 {[%emt 0:1:25]} Rxc1+ {[%emt 0:0:21]} 57. Rxc1 {[%emt 0:0:1]} Qa6 {[%emt 0:0:47]} 58. f4 {[%emt 0:1:0]} exf4 {[%emt 0:0:38]} 59. gxf4 {[%emt 0:0:7]} Qa4 {[%emt 0:0:25]} 60. f5 {[%emt 0:0:58]} g5 {[%emt 0:0:24]} 61. Re1 {[%emt 0:15:41]} Qd4+ {[%emt 0:3:45]} 62. Qxd4 {[%emt 0:0:0]} Rxd4 {[%emt 0:0:3]} 63. Re7+ {[%emt 0:0:0]} Kg8 {[%emt 0:1:11]} 64. Ra7 {[%emt 0:0:0]} h4 {[%emt 0:1:55]} 65. Ra8+ {[%emt 0:0:0]} Kg7 {[%emt 0:2:16]} 66. Ra7+ {[%emt 0:0:0]} Kh6 {[%emt 0:0:19]} 67. Ra6 {[%emt 0:0:0]} g4 {[%emt 0:1:41]} 68. Rxf6+ {[%emt 0:0:0]} Kg5 {[%emt 0:0:17]} 69. Rf8 {[%emt 0:0:0]} Rf4 {[%emt 0:0:43]} 70. Kb2 {[%emt 0:0:0]} Rxf5 {[%emt 0:0:33]} 0-1